lending/lending_fUSD_20250121
["ID","MTS","AMOUNT","RATE_DAILY","PERIOD"]
[349901482,1737486646938,-500.0,0.0002082,2]
[349901483,1737486646947,-500.0,0.0002082,2]
[349901484,1737486646957,-500.0,0.0002082,2]
[349901485,1737486646967,-500.0,0.0002082,2]
[349901486,1737486646977,-500.0,0.0002082,2]
[349901487,1737486646986,-500.0,0.0002082,2]
[349901488,1737486646996,-500.0,0.0002082,2]
[349901489,1737486647006,-500.0,0.0002082,2]
[349901490,1737486647016,-500.0,0.0002082,2]
[349901491,1737486647026,-500.0,0.0002082,2]
[349901492,1737486647036,-199.43559659,0.0002082,2]
[349901493,1737486647046,-535.12,0.0002082,2]
[349901494,1737486647056,-500.0,0.0002082,2]
[349901495,1737486647066,-66.11536283,0.0002082,2]
[349901496,1737486647091,-403.50071817,0.0002082,2]
[349901497,1737486647101,-500.0,0.0002082,2]
[349901498,1737486647111,-500.0,0.0002082,2]
[349901499,1737486647122,-195.49928683,0.0002082,2]
[349901500,1737486647134,-304.50071317,0.0002082,2]
[349901501,1737486647144,-500.0,0.0002082,2]
[349901502,1737486647155,-611.97,0.0002082,2]
[349901503,1737486647165,-500.0,0.0002082,2]
[349901504,1737486647175,-272.221291,0.0002082,2]
[349901505,1737486647185,-2548.0,0.0002082,2]
[349901506,1737486647195,-541.15,0.0002082,2]
[349901507,1737486647206,-587.71,0.0002082,2]
[349901508,1737486647222,-531.14,0.0002082,2]
[349901509,1737486647233,-1987.2,0.0002082,2]
[349901510,1737486647243,-500.0,0.0002082,2]
[349901511,1737486647255,-578.97,0.0002082,2]
[349901512,1737486647266,-500.0,0.0002082,2]
[349901513,1737486647276,-193.39241339,0.0002082,2]
[349901514,1737486647286,-1134.03,0.0002082,2]
[349901515,1737486647297,-560.04,0.0002082,2]
[349901516,1737486647307,-500.0,0.0002082,2]
[349901517,1737486647316,-500.0,0.0002082,2]
[349901518,1737486647326,-731.71,0.0002082,2]
[349901519,1737486647336,-500.0,0.0002082,2]
[349901520,1737486647345,-500.0,0.0002082,2]
[349901521,1737486647355,-500.0,0.0002082,2]
[349901522,1737486647364,-500.0,0.0002082,2]
[349901523,1737486647375,-869.54,0.0002082,2]
[349901524,1737486647386,-1140.15,0.0002082,2]
[349901525,1737486647396,-500.0,0.0002082,2]
[349901526,1737486647408,-569.54,0.0002082,2]
[349901527,1737486647417,-500.0,0.0002082,2]
[349901528,1737486647428,-500.0,0.0002082,2]
[349901529,1737486647438,-500.0,0.0002082,2]
[349901530,1737486647450,-612.31,0.0002082,2]
[349901531,1737486647460,-500.0,0.0002082,2]
[349901532,1737486647470,-500.0,0.0002082,2]
[349901533,1737486647480,-500.0,0.0002082,2]
[349901534,1737486647490,-500.0,0.0002082,2]
[349901535,1737486647500,-1201.96,0.0002082,2]
[349901536,1737486647510,-762.31,0.0002082,2]
[349901537,1737486647521,-500.0,0.0002082,2]
[349901538,1737486647531,-500.0,0.0002082,2]
[349901539,1737486647541,-500.0,0.0002082,2]
[349901540,1737486647551,-350.96418998,0.0002082,2]
[349901541,1737486647561,-532.67,0.0002082,2]
[349901542,1737486647571,-500.0,0.0002082,2]
[349901543,1737486647582,-1012.54,0.0002082,2]
[349901544,1737486647591,-500.0,0.0002082,2]
[349901545,1737486647601,-756.34,0.0002082,2]
[349901546,1737486647611,-500.0,0.0002082,2]
[349901547,1737486647620,-1126.25,0.0002082,2]
[349901548,1737486647630,-848.52,0.0002082,2]
[349901549,1737486647640,-223.08845827,0.0002082,2]
[349901550,1737486647650,-500.0,0.0002082,2]
[349901551,1737486647661,-839.34,0.0002082,2]
[349901552,1737486647671,-505.71,0.0002082,2]
[349901553,1737486647681,-500.0,0.0002082,2]
[349901554,1737486647691,-500.0,0.0002082,2]
[349901555,1737486647700,-585.82,0.0002082,2]
[349901556,1737486647711,-568.44,0.0002082,2]
[349901557,1737486647721,-1306.97,0.0002082,2]
[349901558,1737486647731,-1070.27,0.0002082,2]
[349901559,1737486647741,-500.0,0.0002082,2]
[349901560,1737486647751,-500.0,0.0002082,2]
[349901561,1737486647761,-1160.53,0.0002082,2]
[349901562,1737486647771,-500.0,0.0002082,2]
[349901563,1737486647780,-500.0,0.0002082,2]
[349901564,1737486647790,-629.96,0.0002082,2]
[349901565,1737486647799,-500.0,0.0002082,2]
[349901566,1737486647808,-503.04,0.0002082,2]
[349901567,1737486647821,-500.0,0.0002082,2]
[349901568,1737486647831,-500.0,0.0002082,2]
[349901569,1737486647841,-566.28,0.0002082,2]
[349901570,1737486647851,-501.68,0.0002082,2]
[349901571,1737486647860,-500.0,0.0002082,2]
[349901572,1737486647870,-500.0,0.0002082,2]
[349901573,1737486647879,-574.17607077,0.00020821,2]
[349901574,1737486647890,-500.0,0.00020821,2]
[349901575,1737486647900,-500.0,0.00020821,2]
[349901576,1737486647911,-500.0,0.00020821,2]
[349901577,1737486647921,-500.0,0.00020821,2]
[349901578,1737486647930,-584.41976524,0.00020821,2]
[349901579,1737486647940,-500.0,0.00020821,2]
[349901580,1737486647950,-500.0,0.00020821,2]
[349901581,1737486647959,-500.0,0.00020821,2]
[349901582,1737486647969,-500.0,0.00020821,2]
[349901583,1737486647980,-500.0,0.00020821,2]
[349901584,1737486647989,-158.24509703,0.00020821,2]
[349901585,1737486648007,-500.0,0.00020821,2]
[349901586,1737486648017,-324.94200115,0.00020821,2]
[349901591,1737486802004,-197.96,0.00016712,2]
[349901594,1737486879421,-174.45848588,0.00019855,2]
[349901595,1737486879443,-250.0,0.00019863,2]
[349901596,1737486879464,-543.13,0.0001988,2]
[349901597,1737486879488,-274.12,0.00019894,2]
[349901598,1737486879508,-2630.7357,0.00019899,2]
[349901599,1737486879529,-168.54,0.00019955,2]
[349901600,1737486879551,-300.0,0.00020171,2]
[349901601,1737486879572,-28590.7088,0.00020172,2]
[349901602,1737486879594,-5000.0,0.00020173,2]
[349901603,1737486879616,-200.9,0.00020271,2]
[349901604,1737486879636,-150.0,0.00020271,2]
[349901605,1737486879659,-500.0,0.00020271,2]
[349901606,1737486879682,-574.32,0.00020271,2]
[349901607,1737486879705,-500.0,0.00020271,2]
[349901608,1737486879729,-500.0,0.00020271,2]
[349901609,1737486879752,-167.99691944,0.00020271,2]
[349901610,1737486879774,-500.0,0.00020271,2]
[349901611,1737486879796,-500.0,0.00020271,2]
[349901612,1737486879820,-500.0,0.00020271,2]
[349901613,1737486879844,-500.0,0.00020272,2]
[349901614,1737486879866,-500.0,0.00020272,2]
[349901615,1737486879887,-486.36856202,0.00020272,2]
[349901616,1737486879908,-500.0,0.00020272,2]
[349901617,1737486879930,-500.0,0.00020272,2]
[349901618,1737486879953,-1323.98,0.00020272,2]
[349901619,1737486879976,-494.0,0.00020272,2]
[349901620,1737486879997,-500.0,0.00020272,2]
[349901621,1737486880021,-548.0,0.00020272,2]
[349901622,1737486880043,-500.0,0.00020272,2]
[349901623,1737486880065,-500.0,0.00020272,2]
[349901624,1737486880087,-500.0,0.00020272,2]
[349901625,1737486880109,-500.0,0.00020272,2]
[349901626,1737486880132,-507.21692308,0.00020272,2]
[349901627,1737486880155,-506.6,0.00020272,2]
[349901628,1737486880179,-587.99,0.00020272,2]
[349901629,1737486880203,-968.08,0.00020272,2]
[349901630,1737486880226,-992.28,0.00020272,2]
[349901631,1737486880252,-545.63,0.00020272,2]
[349901632,1737486880279,-640.25,0.00020272,2]
[349901633,1737486880300,-617.8968922,0.00020272,2]
[349901634,1737486880326,-500.0,0.00020272,2]
[349901635,1737486880349,-500.0,0.00020272,2]
[349901636,1737486880372,-319.97994005,0.00020272,2]
[349901637,1737486880393,-927.96,0.00020272,2]
[349901638,1737486880414,-500.0,0.00020272,2]
[349901639,1737486880436,-804.78,0.00020272,2]
[349901640,1737486880459,-955.5,0.00020272,2]
[349901641,1737486880483,-997.63,0.00020272,2]
[349901642,1737486880505,-628.8,0.00020272,2]
[349901643,1737486880709,-500.0,0.00020272,2]
[349901644,1737486880732,-500.0,0.00020272,2]
[349901645,1737486880754,-500.0,0.00020272,2]
[349901646,1737486880776,-500.0,0.00020272,2]
[349901647,1737486880798,-531.98,0.00020272,2]
[349901648,1737486880821,-535.77,0.00020272,2]
[349901649,1737486880846,-658.2,0.00020272,2]
[349901650,1737486880869,-667.02,0.00020272,2]
[349901651,1737486880891,-500.0,0.00020272,2]
[349901652,1737486880913,-867.35,0.00020272,2]
[349901653,1737486880937,-500.0,0.00020272,2]
[349901654,1737486880961,-500.0,0.00020272,2]
[349901655,1737486880984,-500.0,0.00020272,2]
[349901656,1737486881007,-500.0,0.00020272,2]
[349901657,1737486881031,-682.63,0.00020272,2]
[349901658,1737486881054,-1547.23,0.00020272,2]
[349901659,1737486881076,-500.0,0.00020272,2]
[349901660,1737486881099,-500.0,0.00020272,2]
[349901661,1737486881122,-620.77,0.00020272,2]
[349901662,1737486881142,-503.39868062,0.00020272,2]
[349901663,1737486881165,-755.26,0.00020272,2]
[349901664,1737486881188,-502.55316654,0.00020272,2]
[349901665,1737486881212,-501.67710537,0.00020272,2]
[349901666,1737486881236,-500.0,0.00020272,2]
[349901667,1737486881258,-500.0,0.00020272,2]
[349901668,1737486881282,-502.23657365,0.00020272,2]
[349901669,1737486881304,-500.0,0.00020272,2]
[349901670,1737486881328,-201.30616063,0.00020272,2]
[349901671,1737486881351,-500.0,0.00020272,2]
[349901672,1737486881378,-500.0,0.00020272,2]
[349901673,1737486881402,-2046.19,0.00020272,2]
[349901674,1737486881424,-501.22400596,0.00020272,2]
[349901675,1737486881448,-323.43141777,0.00020272,2]
[349901676,1737486881470,-501.95728721,0.00020272,2]
[349901677,1737486881493,-500.0,0.00020272,2]
[349901678,1737486881516,-501.56075317,0.00020272,2]
[349901679,1737486881538,-500.0,0.00020272,2]
[349901680,1737486881560,-500.0,0.00020272,2]
[349901681,1737486881582,-500.0,0.00020272,2]
[349901682,1737486881602,-501.76178357,0.00020272,2]
[349901683,1737486881624,-501.8942469,0.00020272,2]
[349901684,1737486881647,-500.0,0.00020272,2]
[349901685,1737486881669,-500.0,0.00020272,2]
[349901686,1737486881690,-500.0,0.00020272,2]
[349901687,1737486881712,-500.0,0.00020272,2]
[349901688,1737486881732,-500.0,0.00020272,2]
[349901689,1737486881754,-500.0,0.00020272,2]
[349901690,1737486881775,-504.67377525,0.00020272,2]
[349901691,1737486881797,-500.0,0.00020272,2]
[349901692,1737486881817,-507.69444921,0.00020272,2]
[349901693,1737486881837,-500.83039609,0.00020272,2]
[349901694,1737486881859,-500.0,0.00020272,2]
[349901695,1737486881881,-500.0,0.00020272,2]
[349901696,1737486881901,-500.0,0.00020272,2]
[349901697,1737486881922,-562.5,0.00020272,2]
[349901698,1737486881944,-500.0,0.00020272,2]
[349901699,1737486881966,-500.0,0.00020272,2]
[349901700,1737486881988,-500.0,0.00020272,2]
[349901701,1737486882010,-500.0,0.00020272,2]
[349901702,1737486882033,-500.0,0.00020272,2]
[349901703,1737486882055,-211.83412556,0.00020272,2]
[349901704,1737486882078,-500.0,0.00020272,2]
[349901705,1737486882101,-662.29,0.00020272,2]
[349901706,1737486882125,-611.82,0.00020272,2]
[349901707,1737486882145,-501.22100309,0.00020272,2]
[349901708,1737486882168,-500.0,0.00020272,2]
[349901709,1737486882191,-500.0,0.00020272,2]
[349901710,1737486882214,-500.0,0.00020272,2]
[349901711,1737486882237,-500.0,0.00020272,2]
[349901712,1737486882260,-500.0,0.00020272,2]
[349901713,1737486882285,-500.0,0.00020272,2]
[349901714,1737486882308,-103.88284674,0.00020272,2]
[349901719,1737487148177,536.39,0.0001792,2]
[349901720,1737487399589,253.67,0.00010137,2]
[349901722,1737487508608,99209.94,0.00012,2]
[349901723,1737487508639,9444.33845196,0.00012,2]
[349901724,1737487508666,10000.0,0.00012,2]
[349901725,1737487508691,10000.0,0.00012,2]
[349901726,1737487508715,10000.0,0.00012,2]
[349901727,1737487508739,10000.0,0.00012,2]
[349901728,1737487508764,10000.0,0.00012,2]
[349901729,1737487508789,10000.0,0.00012,2]
[349901730,1737487508814,10000.0,0.00012,2]
[349901731,1737487508837,10000.0,0.00012,2]
[349901732,1737487508862,10000.0,0.00012,2]
[349901733,1737487508886,10000.0,0.00012,2]
[349901734,1737487508913,10000.0,0.00012,2]
[349901735,1737487508938,10000.0,0.00012,2]
[349901736,1737487508962,10000.0,0.00012,2]
[349901737,1737487508987,10000.0,0.00012,2]
[349901738,1737487509012,10000.0,0.00012,2]
[349901739,1737487509041,10000.0,0.00012,2]
[349901740,1737487509067,10000.0,0.00012,2]
[349901741,1737487509092,10000.0,0.00012,2]
[349901742,1737487509116,10000.0,0.00012,2]
[349901743,1737487509140,10000.0,0.00012,2]
[349901744,1737487509165,10000.0,0.00012,2]
[349901745,1737487509190,10000.0,0.00012,2]
[349901746,1737487509215,10000.0,0.00012,2]
[349901747,1737487509240,10000.0,0.00012,2]
[349901748,1737487509264,10000.0,0.00012,2]
[349901749,1737487509288,10000.0,0.00012,2]
[349901750,1737487509312,10000.0,0.00012,2]
[349901751,1737487509336,10000.0,0.00012,2]
[349901752,1737487509358,10000.0,0.00012,2]
[349901753,1737487509380,10000.0,0.00012,2]
[349901754,1737487509408,10000.0,0.00012,2]
[349901755,1737487509431,10000.0,0.00012,2]
[349901756,1737487509462,10000.0,0.00012,2]
[349901757,1737487509488,10000.0,0.00012,2]
[349901758,1737487509511,10000.0,0.00012,2]
[349901759,1737487509543,10109.00193318,0.00012,2]
[349901760,1737487509573,792159.01537778,0.00012,2]
[349901761,1737487520927,270.74768693,9e-05,2]
[349901767,1737487662188,1441.24954607,0.0001,2]
[349901768,1737487680050,2488.18342115,0.0001,2]
[349901769,1737487683153,149008.11103615,0.0001,2]
[349901770,1737487683177,606864.59245377,0.0001,2]
[349901777,1737487726842,229.34395934,8e-05,2]
[349901782,1737487832832,-961.67907138,0.00018,10]
[349901783,1737487832965,-881.35643853,0.00018,10]
[349901784,1737487832976,-1373.22492406,0.00018,10]
[349901785,1737487832986,-366.56,0.00019177,2]
[349901786,1737487832996,-161.32,0.00019188,2]
[349901787,1737487833006,-150.0,0.00019198,2]
[349901788,1737487833015,-507.26391584,0.00019198,2]
[349901789,1737487833025,-250.0,0.00019198,2]
[349901790,1737487833034,-428.43,0.00019321,2]
[349901791,1737487833043,-1000.0,0.00019333,2]
[349901792,1737487833053,-300.0,0.00019346,2]
[349901793,1737487833062,-6613.2011601,0.00019347,2]
[349901794,1737487833077,-700.2796077,0.00019347,2]
[349901795,1737487833157,-3042.7792322,0.00019347,2]
[349901796,1737487833168,-318.65886342,0.000195,2]
[349901797,1737487833178,-152.49,0.00019738,2]
[349901798,1737487833189,-152.49,0.00019746,2]
[349901799,1737487833198,-152.49,0.00019755,2]
[349901800,1737487833208,-182.41,0.00019761,2]
[349901802,1737487833217,-152.49,0.00019763,2]
[349901804,1737487833227,-152.49,0.00019771,2]
[349901806,1737487833237,-250.0,0.00019778,2]
[349901808,1737487833246,-152.49,0.00019779,2]
[349901810,1737487833255,-152.49,0.00019788,2]
[349901812,1737487833265,-152.49,0.00019796,2]
[349901814,1737487833274,-152.49,0.00019804,2]
[349901816,1737487833283,-152.49,0.00019812,2]
[349901818,1737487833292,-152.49,0.0001982,2]
[349901819,1737487833302,-152.49,0.00019829,2]
[349901821,1737487833311,-152.49,0.00019837,2]
[349901823,1737487833321,-727.05,0.00019837,2]
[349901825,1737487833331,-177.36,0.0001989,2]
[349901828,1737487833341,-250.0,0.00019994,2]
[349901830,1737487833351,-442.28930274,0.0002,2]
[349901832,1737487833360,-48165.04734745,0.0002,4]
[349901834,1737487833370,-502.37038407,0.00020083,2]
[349901836,1737487833379,-536.39,0.00020183,2]
[349901839,1737487833389,-359.00103535,0.0002027,2]
[349901842,1737487833398,-1035.682,0.00020271,2]
[349901844,1737487833407,-500.0,0.00020271,2]
[349901850,1737487833418,-500.0,0.00020271,2]
[349901853,1737487833427,-500.0,0.00020271,2]
[349901855,1737487833436,-500.0,0.00020271,2]
[349901857,1737487833445,-500.0,0.00020271,2]
[349901860,1737487833455,-500.0,0.00020271,2]
[349901862,1737487833464,-500.0,0.00020271,2]
[349901864,1737487833473,-500.0,0.00020271,2]
[349901866,1737487833483,-263.06583049,0.00020272,2]
[349901868,1737487833492,-649.10050615,0.00020272,2]
[349901869,1737487833501,-502.99085173,0.00020272,2]
[349901871,1737487833511,-500.0,0.00020272,2]
[349901873,1737487833522,-500.0,0.00020272,2]
[349901875,1737487833535,-500.0,0.00020272,2]
[349901877,1737487833544,-500.0,0.00020272,2]
[349901879,1737487833554,-500.0,0.00020272,2]
[349901881,1737487833563,-500.0,0.00020272,2]
[349901883,1737487833574,-500.0,0.00020272,2]
[349901885,1737487833583,-417.39452726,0.00020272,2]
[349901887,1737487833593,-500.0,0.00020272,2]
[349901889,1737487833603,-500.0,0.00020272,2]
[349901891,1737487833611,-500.0,0.00020272,2]
[349901893,1737487833621,-500.0,0.00020272,2]
[349901895,1737487833630,-500.0,0.00020272,2]
[349901897,1737487833640,-500.0,0.00020272,2]
[349901899,1737487833649,-500.0,0.00020272,2]
[349901901,1737487833658,-500.0,0.00020272,2]
[349901903,1737487833667,-637.24090478,0.00020272,2]
[349901905,1737487833676,-500.0,0.00020272,2]
[349901906,1737487833685,-500.0,0.00020272,2]
[349901908,1737487833695,-500.0,0.00020272,2]
[349901910,1737487833705,-500.0,0.00020272,2]
[349901912,1737487833714,-500.0,0.00020272,2]
[349901914,1737487833723,-500.0,0.00020272,2]
[349901916,1737487833732,-500.0,0.00020272,2]
[349901918,1737487833742,-500.0,0.00020272,2]
[349901920,1737487833751,-500.0,0.00020272,2]
[349901922,1737487833760,-500.0,0.00020272,2]
[349901924,1737487833769,-500.0,0.00020272,2]
[349901925,1737487833779,-500.0,0.00020272,2]
[349901927,1737487833788,-500.0,0.00020272,2]
[349901929,1737487833797,-500.0,0.00020272,2]
[349901931,1737487833806,-500.0,0.00020272,2]
[349901933,1737487833816,-500.0,0.00020272,2]
[349901935,1737487833825,-500.0,0.00020272,2]
[349901937,1737487833834,-500.0,0.00020272,2]
[349901939,1737487833844,-500.0,0.00020272,2]
[349901941,1737487833853,-500.0,0.00020272,2]
[349901943,1737487833863,-500.0,0.00020272,2]
[349901945,1737487833872,-500.0,0.00020272,2]
[349901947,1737487833881,-500.0,0.00020272,2]
[349901949,1737487833891,-500.0,0.00020272,2]
[349901951,1737487833900,-500.0,0.00020272,2]
[349901953,1737487833908,-500.0,0.00020272,2]
[349901954,1737487833918,-42.18123855,0.00020272,2]
[349901996,1737487834319,-457.81876145,0.00020272,2]
[349901999,1737487834329,-500.0,0.00020272,2]
[349902000,1737487834339,-500.0,0.00020272,2]
[349902002,1737487834349,-500.0,0.00020272,2]
[349902004,1737487834359,-222.00236403,0.00020272,2]
[349902382,1737487838202,-277.99763597,0.00020272,2]
[349902384,1737487838212,-500.0,0.00020272,2]
[349902386,1737487838221,-500.0,0.00020272,2]
[349902388,1737487838230,-500.0,0.00020272,2]
[349902390,1737487838239,-500.0,0.00020272,2]
[349902392,1737487838249,-500.0,0.00020272,2]
[349902394,1737487838258,-500.0,0.00020272,2]
[349902396,1737487838268,-500.0,0.00020272,2]
[349902397,1737487838278,-500.0,0.00020272,2]
[349902400,1737487838288,-500.0,0.00020272,2]
[349902401,1737487838298,-500.0,0.00020272,2]
[349902403,1737487838307,-500.0,0.00020272,2]
[349902405,1737487838316,-200.0,0.00020272,2]
[349902407,1737487838326,-500.0,0.00020272,2]
[349902409,1737487838335,-500.0,0.00020272,2]
[349902411,1737487838344,-500.0,0.00020272,2]
[349902413,1737487838353,-500.0,0.00020272,2]
[349902415,1737487838363,-500.0,0.00020272,2]
[349902417,1737487838372,-16.75969837,0.00020272,2]
[349902420,1737487838387,-555.64030163,0.00020272,2]
[349902422,1737487838397,-500.0,0.00020272,2]
[349902424,1737487838405,-500.0,0.00020272,2]
[349902426,1737487838416,-500.0,0.00020272,2]
[349902428,1737487838427,-500.0,0.00020272,2]
[349902430,1737487838436,-500.0,0.00020272,2]
[349902432,1737487838446,-500.0,0.00020272,2]
[349902433,1737487838456,-500.0,0.00020272,2]
[349902436,1737487838466,-500.0,0.00020272,2]
[349902437,1737487838476,-320.87,0.00020356,2]
[349902438,1737487838486,-210.46660836,0.00020419,2]
[349902439,1737487838496,-500.0,0.00020419,2]
[349902440,1737487838505,-500.0,0.00020419,2]
[349902441,1737487838515,-500.0,0.00020419,2]
[349902442,1737487838528,-500.0,0.00020419,2]
[349902443,1737487838538,-500.0,0.00020419,2]
[349902445,1737487838547,-500.0,0.00020419,2]
[349902447,1737487838557,-500.0,0.00020419,2]
[349902449,1737487838566,-500.0,0.00020419,2]
[349902451,1737487838576,-500.0,0.00020419,2]
[349902453,1737487838585,-501.32612881,0.00020419,2]
[349902455,1737487838595,-500.0,0.00020419,2]
[349902457,1737487838604,-500.0,0.00020419,2]
[349902459,1737487838616,-500.0,0.00020419,2]
[349902461,1737487838625,-500.0,0.00020419,2]
[349902463,1737487838635,-500.0,0.00020419,2]
[349902465,1737487838644,-500.0,0.00020419,2]
[349902467,1737487838653,-174.16,0.00020419,2]
[349902469,1737487838663,-500.0,0.00020419,2]
[349902471,1737487838675,-500.0,0.00020419,2]
[349902473,1737487838684,-200.0,0.00020475,2]
[349902475,1737487838693,-5024.70076398,0.000205,2]
[349902476,1737487838704,-576.69,0.00020545,2]
[349902480,1737487838714,-400.4,0.00020545,2]
[349902483,1737487838723,-500.0,0.00020545,2]
[349902486,1737487838733,-500.0,0.00020545,2]
[349902488,1737487838743,-500.0,0.00020545,2]
[349902490,1737487838751,-304.8463421,0.00020546,2]
[349902492,1737487838760,-500.0,0.00020546,2]
[349902493,1737487838769,-500.0,0.00020546,2]
[349902495,1737487838779,-500.0,0.00020546,2]
[349902497,1737487838788,-500.0,0.00020546,2]
[349902499,1737487838798,-500.0,0.00020546,2]
[349902501,1737487838807,-500.0,0.00020546,2]
[349902503,1737487838816,-500.0,0.00020546,2]
[349902505,1737487838829,-500.0,0.00020546,2]
[349902507,1737487838838,-500.0,0.00020546,2]
[349902509,1737487838847,-500.0,0.00020546,2]
[349902511,1737487838857,-201.74,0.00020546,2]
[349902513,1737487838866,-155.08,0.00020546,2]
[349902515,1737487838875,-500.0,0.00020546,2]
[349902517,1737487838884,-500.0,0.00020546,2]
[349902519,1737487838893,-500.0,0.00020546,2]
[349902521,1737487838902,-515.03,0.00020546,2]
[349902523,1737487838912,-500.0,0.00020546,2]
[349902525,1737487838923,-500.0,0.00020546,2]
[349902527,1737487838932,-500.0,0.00020546,2]
[349902529,1737487838942,-500.0,0.00020546,2]
[349902531,1737487838951,-500.0,0.00020546,2]
[349902533,1737487838961,-512.2144283,0.00020546,2]
[349902535,1737487838970,-500.0,0.00020546,2]
[349902537,1737487838980,-212.95659483,0.00020546,2]
[349902539,1737487838990,-500.0,0.00020546,2]
[349902541,1737487839000,-418.87,0.00020546,2]
[349902543,1737487839010,-500.0,0.00020546,2]
[349902545,1737487839019,-500.0,0.00020546,2]
[349902547,1737487839028,-500.0,0.00020546,2]
[349902549,1737487839037,-500.0,0.00020546,2]
[349902551,1737487839047,-500.0,0.00020546,2]
[349902553,1737487839056,-500.0,0.00020546,2]
[349902555,1737487839065,-500.0,0.00020546,2]
[349902557,1737487839074,-500.0,0.00020546,2]
[349902559,1737487839083,-572.4,0.00020546,2]
[349902561,1737487839092,-500.0,0.00020546,2]
[349902563,1737487839101,-500.0,0.00020546,2]
[349902565,1737487839111,-500.0,0.00020546,2]
[349902567,1737487839120,-500.0,0.00020546,2]
[349902569,1737487839130,-621.39,0.00020546,2]
[349902571,1737487839139,-332.46185247,0.00020546,2]
[349902574,1737487839160,-167.53814753,0.00020546,2]
[349902576,1737487839170,-1204.0,0.00020549,2]
[349902578,1737487839179,-1471.78482584,0.00020552,2]
[349902580,1737487839191,-1269.99759,0.00020552,2]
[349902582,1737487839202,-2388.6000052,0.00020552,2]
[349902584,1737487839213,-832.06991559,0.00020552,2]
[349902587,1737487839229,-4220.71300134,0.00020552,2]
[349902589,1737487839244,-2132.2,0.00020552,2]
[349902591,1737487839256,-2260.82466203,0.00020552,2]
[349902593,1737487839265,-939.13325797,0.0002061,2]
[349902596,1737487839276,-299.37950016,0.0002061,2]
[349902598,1737487839288,-1711.94088374,0.0002061,2]
[349902603,1737487839328,-49.54635813,0.0002061,2]
[349902605,1737487839338,-721.91627446,0.0002062,2]
[349902607,1737487839347,-3000.0,0.0002062,2]
[349902609,1737487839356,-200.0,0.00020679,2]
[349902611,1737487839366,-500.0,0.00020693,2]
[349902613,1737487839375,-500.0,0.00020693,2]
[349902615,1737487839384,-500.0,0.00020693,2]
[349902617,1737487839393,-452.74993742,0.00020693,2]
[349902619,1737487839404,-47.25006258,0.00020693,2]
[349902621,1737487839414,-1000.0,0.000207,2]
[349902623,1737487839425,-421.7984423,0.00020719,2]
[349902625,1737487839435,-4402.3689294,0.00020756,2]
[349902627,1737487839444,-3000.0,0.0002077,2]
[349902629,1737487839453,-502.66295749,0.00020787,2]
[349902631,1737487839463,-4174.24247853,0.00020791,2]
[349902633,1737487839471,-547.92253785,0.00020794,2]
[349902635,1737487839481,-8599.98495886,0.00020797,2]